fUST/lending_fUST_20241108
["ID","MTS","AMOUNT","RATE_DAILY","PERIOD"]
[341665280,1731075046929,-500.0,0.00022236,2]
[341665281,1731075046939,-506.25355842,0.00022236,2]
[341665282,1731075046948,-500.0,0.00022236,2]
[341665283,1731075046962,-500.0,0.00022236,2]
[341665284,1731075046972,-583.33,0.00022236,2]
[341665285,1731075046981,-500.0,0.00022236,2]
[341665286,1731075046992,-505.30237133,0.00022236,2]
[341665287,1731075047002,-775.26,0.00022236,2]
[341665288,1731075047012,-503.4595518,0.00022236,2]
[341665289,1731075047022,-868.05,0.00022236,2]
[341665290,1731075047032,-500.0,0.00022236,2]
[341665291,1731075047041,-500.0,0.00022236,2]
[341665292,1731075047051,-500.0,0.00022236,2]
[341665293,1731075047060,-500.0,0.00022236,2]
[341665294,1731075047070,-500.0,0.00022236,2]
[341665295,1731075047079,-554.88712651,0.00022236,2]
[341665296,1731075047088,-222.05113071,0.00022237,2]
[341665297,1731075047097,-500.0,0.00022237,2]
[341665298,1731075047107,-500.0,0.00022237,2]
[341665299,1731075047116,-500.0,0.00022237,2]
[341665300,1731075047126,-500.0,0.00022237,2]
[341665301,1731075047135,-500.0,0.00022237,2]
[341665302,1731075047145,-503.493079,0.00022237,2]
[341665303,1731075047154,-503.02956371,0.00022237,2]
[341665304,1731075047164,-1178.702556,0.00022317,2]
[341665305,1731075047173,-1000.0,0.0002241,2]
[341665306,1731075047183,-166.666666,0.00022431,2]
[341665307,1731075047192,-500.0,0.00022454,2]
[341665308,1731075047203,-500.0,0.00022454,2]
[341665309,1731075047218,-500.0,0.00022463,2]
[341665310,1731075047228,-500.0,0.00022463,2]
[341665311,1731075047237,-281.0201559,0.00022463,2]
[341665312,1731075047247,-500.0,0.00022465,2]
[341665313,1731075047258,-500.0,0.00022465,2]
[341665314,1731075047267,-500.0,0.00022465,2]
[341665315,1731075047277,-500.0,0.00022465,2]
[341665316,1731075047286,-500.0,0.00022465,2]
[341665317,1731075047295,-500.0,0.00022465,2]
[341665318,1731075047306,-500.0,0.00022465,2]
[341665319,1731075047315,-500.0,0.00022465,2]
[341665320,1731075047325,-500.0,0.00022465,2]
[341665321,1731075047335,-500.0,0.00022465,2]
[341665322,1731075047344,-500.0,0.00022465,2]
[341665323,1731075047353,-500.0,0.00022465,2]
[341665324,1731075047362,-500.0,0.00022465,2]
[341665325,1731075047372,-500.0,0.00022465,2]
[341665326,1731075047381,-887.91,0.00022465,2]
[341665327,1731075047391,-500.0,0.00022465,2]
[341665328,1731075047401,-1459.6,0.00022465,2]
[341665329,1731075047411,-500.0,0.00022465,2]
[341665330,1731075047421,-1062.81,0.00022465,2]
[341665331,1731075047431,-736.36,0.00022465,2]
[341665332,1731075047440,-500.0,0.00022465,2]
[341665333,1731075047450,-500.0,0.00022465,2]
[341665334,1731075047462,-500.0,0.00022465,2]
[341665335,1731075047471,-500.0,0.00022465,2]
[341665336,1731075047481,-566.46822756,0.00022465,2]
[341665337,1731075047490,-487.70654853,0.00022465,2]
[341665338,1731075047499,-500.0,0.00022465,2]
[341665339,1731075047508,-2954.81,0.00022465,2]
[341665340,1731075047518,-500.0,0.00022465,2]
[341665341,1731075047528,-695.6,0.00022465,2]
[341665342,1731075047537,-500.0,0.00022465,2]
[341665343,1731075047547,-8935.42,0.00022465,2]
[341665344,1731075047556,-1681.18,0.00022465,2]
[341665345,1731075047566,-1724.62,0.00022465,2]
[341665346,1731075047575,-7294.51,0.00022465,2]
[341665347,1731075047585,-500.0,0.00022465,2]
[341665348,1731075047596,-166.05576297,0.00022465,2]
[341665349,1731075047605,-500.0,0.00022465,2]
[341665350,1731075047615,-2336.0,0.00022465,2]
[341665351,1731075047624,-500.0,0.00022465,2]
[341665352,1731075047634,-1099.69,0.00022465,2]
[341665353,1731075047644,-641.11,0.00022465,2]
[341665354,1731075047654,-500.0,0.00022465,2]
[341665355,1731075047664,-500.0,0.00022465,2]
[341665356,1731075047673,-500.0,0.00022465,2]
[341665357,1731075047682,-500.0,0.00022465,2]
[341665358,1731075047692,-500.0,0.00022465,2]
[341665359,1731075047702,-500.0,0.0002251,2]
[341665360,1731075047714,-583.33,0.0002251,2]
[341665361,1731075047724,-775.26,0.0002251,2]
[341665362,1731075047734,-868.05,0.0002251,2]
[341665363,1731075047744,-500.0,0.0002251,2]
[341665364,1731075047754,-500.0,0.0002251,2]
[341665365,1731075047764,-500.0,0.0002251,2]
[341665366,1731075047773,-509.53830088,0.00022511,2]
[341665367,1731075047784,-811.47680095,0.00022639,2]
[341665368,1731075047794,-500.0,0.00022739,2]
[341665369,1731075047804,-362.13959531,0.00022739,2]
[341665370,1731075047815,-572.14790739,0.00022739,2]
[341665371,1731075047825,-500.0,0.00022739,2]
[341665372,1731075047835,-500.0,0.00022739,2]
[341665373,1731075047845,-500.0,0.00022739,2]
[341665374,1731075047855,-500.0,0.00022739,2]
[341665375,1731075047864,-500.0,0.00022739,2]
[341665376,1731075047874,-500.0,0.00022739,2]
[341665377,1731075047890,-500.0,0.00022739,2]
[341665378,1731075047903,-887.91,0.00022739,2]
[341665379,1731075047913,-500.0,0.00022739,2]
[341665380,1731075047923,-1459.6,0.00022739,2]
[341665381,1731075047933,-500.0,0.00022739,2]
[341665382,1731075047944,-1062.81,0.00022739,2]
[341665383,1731075047953,-736.36,0.00022739,2]
[341665384,1731075047966,-500.0,0.00022739,2]
[341665385,1731075047976,-500.0,0.00022739,2]
[341665386,1731075047986,-500.0,0.00022739,2]
[341665387,1731075047996,-500.0,0.00022739,2]
[341665388,1731075048006,-2954.81,0.00022739,2]
[341665389,1731075048015,-695.6,0.00022739,2]
[341665390,1731075048026,-175.59124444,0.00022739,2]
[341665391,1731075048036,-8935.42,0.00022739,2]
[341665392,1731075048047,-1681.18,0.00022739,2]
[341665393,1731075048057,-1724.62,0.00022739,2]
[341665394,1731075048066,-7294.51,0.00022739,2]
[341665395,1731075048076,-500.0,0.00022739,2]
[341665396,1731075048084,-500.0,0.00022739,2]
[341665397,1731075048093,-2336.0,0.00022739,2]
[341665398,1731075048102,-592.08143046,0.00022739,2]
[341665399,1731075048111,-1099.69,0.00022739,2]
[341665400,1731075048121,-641.11,0.00022739,2]
[341665401,1731075048130,-500.0,0.00022739,2]
[341665402,1731075048140,-500.0,0.00022739,2]
[341665403,1731075048150,-500.0,0.00022739,2]
[341665404,1731075048159,-500.0,0.00022784,2]
[341665405,1731075048170,-583.33,0.00022784,2]
[341665406,1731075048179,-775.26,0.00022784,2]
[341665407,1731075048190,-868.05,0.00022784,2]
[341665408,1731075048201,-500.0,0.00022784,2]
[341665409,1731075048212,-500.0,0.00022784,2]
[341665410,1731075048222,-300.29,0.00022784,2]
[341665411,1731075048232,-166.666666,0.00022944,2]
[341665412,1731075048242,-420.0,0.00022966,2]
[341665413,1731075048252,-205.0146299,0.00023013,2]
[341665414,1731075048262,-500.0,0.00023013,2]
[341665415,1731075048271,-500.0,0.00023013,2]
[341665416,1731075048282,-596.56234697,0.00023013,2]
[341665417,1731075048292,-500.0,0.00023013,2]
[341665418,1731075048301,-500.0,0.00023013,2]
[341665419,1731075048310,-500.0,0.00023013,2]
[341665420,1731075048319,-887.91,0.00023013,2]
[341665421,1731075048329,-500.0,0.00023013,2]
[341665422,1731075048338,-1459.6,0.00023013,2]
[341665423,1731075048348,-500.0,0.00023013,2]
[341665424,1731075048357,-1062.81,0.00023013,2]
[341665425,1731075048366,-736.36,0.00023013,2]
[341665426,1731075048376,-500.0,0.00023013,2]
[341665427,1731075048386,-500.0,0.00023013,2]
[341665428,1731075048395,-234.67,0.00023013,2]
[341665429,1731075048404,-500.0,0.00023013,2]
[341665430,1731075048413,-2954.81,0.00023013,2]
[341665431,1731075048423,-695.6,0.00023013,2]
[341665432,1731075048432,-8935.42,0.00023013,2]
[341665433,1731075048441,-1681.18,0.00023013,2]
[341665434,1731075048450,-1724.62,0.00023013,2]
[341665435,1731075048459,-7294.51,0.00023013,2]
[341665436,1731075048469,-500.0,0.00023013,2]
[341665437,1731075048478,-613.50405375,0.00023013,2]
[341665438,1731075048487,-2336.0,0.00023013,2]
[341665439,1731075048496,-1099.69,0.00023013,2]
[341665440,1731075048506,-641.11,0.00023013,2]
[341665441,1731075048515,-500.0,0.00023013,2]
[341665442,1731075048524,-500.0,0.00023013,2]
[341665443,1731075048533,-500.0,0.00023013,2]
[341665444,1731075048543,-811.47680095,0.0002305,2]
[341665445,1731075048552,-500.0,0.00023058,2]
[341665446,1731075048561,-583.33,0.00023058,2]
[341665447,1731075048571,-775.26,0.00023058,2]
[341665448,1731075048580,-868.05,0.00023058,2]
[341665449,1731075048590,-530.03596175,0.00023058,2]
[341665450,1731075048599,-420.0,0.00023227,2]
[341665451,1731075048609,-502.25303267,0.0002327,2]
[341665452,1731075048618,-303.75538598,0.0002327,2]
[341665453,1731075048628,-500.0,0.00023287,2]
[341665454,1731075048638,-500.0,0.00023287,2]
[341665455,1731075048647,-500.0,0.00023287,2]
[341665456,1731075048656,-500.0,0.00023287,2]
[341665457,1731075048666,-500.0,0.00023287,2]
[341665458,1731075048675,-887.91,0.00023287,2]
[341665459,1731075048684,-500.0,0.00023287,2]
[341665460,1731075048694,-1459.6,0.00023287,2]
[341665461,1731075048703,-303.97830581,0.00023287,2]
[341665462,1731075048714,-1062.81,0.00023287,2]
[341665463,1731075048727,-736.36,0.00023287,2]
[341665464,1731075048737,-230.03204724,0.00023287,2]
[341665465,1731075048747,-500.0,0.00023287,2]
[341665466,1731075048759,-500.0,0.00023287,2]
[341665467,1731075048769,-2954.81,0.00023287,2]
[341665468,1731075048779,-695.6,0.00023287,2]
[341665469,1731075048789,-8935.42,0.00023287,2]
[341665470,1731075048799,-1681.18,0.00023287,2]
[341665471,1731075048808,-1724.62,0.00023287,2]
[341665472,1731075048817,-7294.51,0.00023287,2]
[341665473,1731075048911,-500.0,0.00023287,2]
[341665474,1731075048920,-2336.0,0.00023287,2]
[341665475,1731075048931,-1099.69,0.00023287,2]
[341665476,1731075048940,-641.11,0.00023287,2]
[341665477,1731075048950,-500.0,0.00023287,2]
[341665478,1731075048964,-500.0,0.00023287,2]
[341665479,1731075048975,-500.0,0.00023287,2]
[341665480,1731075048985,-500.0,0.00023332,2]
[341665481,1731075048995,-583.33,0.00023332,2]
[341665482,1731075049005,-775.26,0.00023332,2]
[341665483,1731075049015,-868.05,0.00023332,2]
[341665484,1731075049024,-500.0,0.00023336,2]
[341665485,1731075049034,-500.0,0.00023418,2]
[341665486,1731075049043,-166.666666,0.00023456,2]
[341665487,1731075049054,-811.47680095,0.00023461,2]
[341665488,1731075049063,-11133.25438753,0.00023461,2]
[341665489,1731075049073,-261.64017761,0.00023542,2]
[341665490,1731075049083,-1000.0,0.00023542,2]
[341665491,1731075049093,-1000.0,0.00023542,2]
[341665492,1731075049102,-500.0,0.00023542,2]
[341665493,1731075049111,-500.0,0.00023561,2]
[341665494,1731075049120,-500.0,0.00023561,2]
[341665495,1731075049130,-500.0,0.00023561,2]
[341665496,1731075049139,-500.0,0.00023561,2]
[341665497,1731075049148,-178.22876777,0.00023561,2]
[341665498,1731075049158,-887.91,0.00023561,2]
[341665499,1731075049168,-500.0,0.00023561,2]
[341665500,1731075049177,-1459.6,0.00023561,2]
[341665501,1731075049186,-1062.81,0.00023561,2]
[341665502,1731075049196,-736.36,0.00023561,2]
[341665503,1731075049206,-500.0,0.00023561,2]
[341665504,1731075049217,-2954.81,0.00023561,2]
[341665505,1731075049227,-695.6,0.00023561,2]
[341665506,1731075049237,-8935.42,0.00023561,2]
[341665507,1731075049247,-1681.18,0.00023561,2]
[341665508,1731075049256,-1724.62,0.00023561,2]
[341665509,1731075049266,-7294.51,0.00023561,2]
[341665510,1731075049276,-500.0,0.00023561,2]
[341665511,1731075049285,-2336.0,0.00023561,2]
[341665512,1731075049294,-1099.69,0.00023561,2]
[341665513,1731075049304,-641.11,0.00023561,2]
[341665514,1731075049313,-500.0,0.00023561,2]
[341665515,1731075049322,-500.0,0.00023561,2]
[341665516,1731075049331,-500.0,0.00023561,2]
[341665517,1731075049340,-500.0,0.00023606,2]
[341665518,1731075049350,-583.33,0.00023606,2]
[341665519,1731075049359,-775.26,0.00023606,2]
[341665520,1731075049368,-868.05,0.00023606,2]
[341665521,1731075049377,-151.0,0.00023606,7]
[341665522,1731075049387,-3000.0,0.000237,2]
[341665523,1731075049397,-3000.0,0.0002371,2]
[341665524,1731075049406,-3000.0,0.0002372,2]
[341665525,1731075049415,-3000.0,0.0002373,2]
[341665526,1731075049426,-3000.0,0.0002374,2]
[341665527,1731075049435,-3000.0,0.0002375,2]
[341665528,1731075049444,-3000.0,0.0002376,2]
[341665529,1731075049454,-3000.0,0.0002377,2]
[341665530,1731075049464,-3000.0,0.0002378,2]
[341665531,1731075049473,-3000.0,0.0002379,2]
[341665532,1731075049482,-3000.0,0.000238,2]
[341665533,1731075049492,-3000.0,0.0002381,2]
[341665534,1731075049502,-3000.0,0.0002382,2]
[341665535,1731075049511,-504.06346072,0.00023824,2]
[341665536,1731075049520,-502.89685815,0.00023824,2]
[341665537,1731075049530,-3000.0,0.0002383,2]
[341665538,1731075049539,-500.0,0.00023835,2]
[341665539,1731075049549,-590.60745123,0.00023835,2]
[341665540,1731075049558,-500.0,0.00023835,2]
[341665541,1731075049567,-500.0,0.00023835,2]
[341665542,1731075049577,-887.91,0.00023835,2]
[341665543,1731075049586,-500.0,0.00023835,2]
[341665544,1731075049596,-1459.6,0.00023835,2]
[341665545,1731075049606,-1062.81,0.00023835,2]
[341665546,1731075049615,-736.36,0.00023835,2]
[341665547,1731075049625,-500.0,0.00023835,2]
[341665548,1731075049635,-2954.81,0.00023835,2]
[341665549,1731075049645,-695.6,0.00023835,2]
[341665550,1731075049654,-8935.42,0.00023835,2]
[341665551,1731075049664,-1681.18,0.00023835,2]
[341665552,1731075049673,-1724.62,0.00023835,2]
[341665553,1731075049682,-7294.51,0.00023835,2]
[341665554,1731075049692,-500.0,0.00023835,2]
[341665555,1731075049702,-2336.0,0.00023835,2]
[341665556,1731075049712,-1099.69,0.00023835,2]
[341665557,1731075049722,-641.11,0.00023835,2]
[341665558,1731075049731,-500.0,0.00023835,2]
[341665559,1731075049740,-276.141942,0.00023835,7]
[341665560,1731075049750,-276.141942,0.00023835,7]
[341665561,1731075049759,-292.357736,0.00023835,7]
[341665562,1731075049770,-500.0,0.00023835,2]
[341665563,1731075049780,-292.357736,0.00023835,7]
[341665564,1731075049790,-500.0,0.00023835,2]
[341665565,1731075049800,-3000.0,0.0002384,2]
[341665566,1731075049809,-3000.0,0.0002385,2]
[341665567,1731075049819,-3000.0,0.0002386,2]
[341665568,1731075049828,-3000.0,0.0002387,2]
[341665569,1731075049837,-500.0,0.0002388,2]
[341665570,1731075049846,-583.33,0.0002388,2]
[341665571,1731075049859,-775.26,0.0002388,2]
[341665572,1731075049874,-868.05,0.0002388,2]
[341665573,1731075049893,-3000.0,0.0002388,2]
[341665574,1731075049905,-3000.0,0.0002389,2]
[341665575,1731075049917,-3000.0,0.000239,2]
[341665576,1731075049932,-3000.0,0.0002391,2]
[341665577,1731075049944,-3000.0,0.0002392,2]
[341665578,1731075049961,-151.0,0.0002392,7]
[341665579,1731075049973,-151.0,0.0002392,7]
[341665580,1731075049987,-151.0,0.0002392,7]
[341665581,1731075049999,-151.0,0.0002392,7]
[341665582,1731075050013,-151.0,0.0002392,7]
[341665583,1731075050026,-5375.778308,0.0002393,2]
[341665584,1731075050039,-151.0,0.0002393,7]
[341665585,1731075050051,-168.839445,0.0002393,7]
[341665586,1731075050064,-168.839445,0.0002393,7]
[341665587,1731075050077,-151.0,0.0002393,7]
[341665588,1731075050089,-806.40906,0.0002393,7]
[341665589,1731075050101,-806.40906,0.0002393,7]
[341665590,1731075050111,-198.884268,0.0002393,7]
[341665591,1731075050123,-198.884268,0.0002393,7]
[341665592,1731075050134,-166.666666,0.00023969,2]
[341665593,1731075050147,-151.0,0.00024108,7]
[341665594,1731075050159,-151.0,0.00024108,7]
[341665595,1731075050171,-339.37123,0.00024108,7]
[341665596,1731075050184,-339.37123,0.00024108,7]
[341665597,1731075050198,-385.07808,0.00024108,7]
[341665598,1731075050212,-385.07808,0.00024108,7]
[341665599,1731075050225,-456.245885,0.00024108,7]
[341665600,1731075050238,-456.245885,0.00024108,7]
[341665601,1731075050248,-223.0760377,0.00024109,2]
[341665602,1731075050258,-646.46331076,0.00024109,2]
[341665603,1731075050268,-500.0,0.00024109,2]
[341665604,1731075050280,-887.91,0.00024109,2]
[341665605,1731075050294,-500.0,0.00024109,2]
[341665606,1731075050307,-1459.6,0.00024109,2]
[341665607,1731075050317,-1062.81,0.00024109,2]
[341665608,1731075050328,-736.36,0.00024109,2]
[341665609,1731075050339,-173.32252,0.00024109,7]
[341665610,1731075050351,-173.32252,0.00024109,7]
[341665611,1731075050363,-500.0,0.00024109,2]
[341665612,1731075050374,-322.704037,0.00024109,7]
[341665613,1731075050385,-322.704037,0.00024109,7]
[341665614,1731075050396,-2954.81,0.00024109,2]
[341665615,1731075050408,-695.6,0.00024109,2]
[341665616,1731075050418,-8935.42,0.00024109,2]
[341665617,1731075050429,-1681.18,0.00024109,2]
[341665618,1731075050440,-1724.62,0.00024109,2]
[341665619,1731075050451,-7294.51,0.00024109,2]
[341665620,1731075050462,-500.0,0.00024109,2]
[341665621,1731075050473,-2336.0,0.00024109,2]
[341665622,1731075050483,-1099.69,0.00024109,2]
[341665623,1731075050494,-641.11,0.00024109,2]
[341665624,1731075050505,-500.0,0.00024109,2]
[341665625,1731075050516,-500.0,0.00024109,2]
[341665626,1731075050527,-500.0,0.00024109,2]
[341665627,1731075050538,-151.0,0.00024109,7]
[341665628,1731075050548,-500.0,0.00024154,2]
[341665629,1731075050559,-583.33,0.00024154,2]
[341665630,1731075050570,-775.26,0.00024154,2]
[341665631,1731075050581,-868.05,0.00024154,2]
[341665632,1731075050592,-150.112233,0.000243,5]
[341665633,1731075050604,-889.59894976,0.00024341,2]
[341665634,1731075050615,-500.0,0.00024383,2]
[341665635,1731075050627,-887.91,0.00024383,2]
[341665636,1731075050638,-500.0,0.00024383,2]
[341665637,1731075050649,-1459.6,0.00024383,2]
[341665638,1731075050660,-1062.81,0.00024383,2]
[341665639,1731075050670,-736.36,0.00024383,2]
[341665640,1731075050681,-500.0,0.00024383,2]
[341665641,1731075050692,-2954.81,0.00024383,2]
[341665642,1731075050703,-695.6,0.00024383,2]
[341665643,1731075050714,-8935.42,0.00024383,2]
[341665644,1731075050726,-144.92526159,0.00024383,2]
[341665649,1731075330975,694.44444444,0.00020843,2]
[341665651,1731075456456,165.92942,0.00013973,2]
[341665657,1731075942289,3949.14719541,0.00020843,2]
[341665658,1731075943141,694.44444444,0.00020843,2]
[341665659,1731075950044,3004.85463757,0.00020843,2]
[341665665,1731076127870,2808.09644188,0.00032015,120]
[341665669,1731076141936,165.932665,0.00013973,2]
[341665684,1731076232673,-6185.4380363,0.00020911,2]
[341665685,1731076232682,-236.366192,0.00020914,2]
[341665686,1731076232692,-282.266961,0.00020917,2]
[341665687,1731076232702,-236.366192,0.00021599,2]
[341665688,1731076232712,-186.03093999,0.00021817,2]
[341665689,1731076232721,-157.17,0.00021907,2]
[341665690,1731076232730,-216.84,0.00021907,3]
[341665691,1731076232740,-650.53,0.00021907,3]
[341665692,1731076232749,-300.0,0.00021915,2]
[341665693,1731076232759,-300.0,0.00021915,2]
[341665694,1731076232769,-577.85086556,0.00021916,2]
[341665696,1731076232778,-3021.18329302,0.00021916,2]
[341665698,1731076232788,-500.0,0.00021916,2]
[341665699,1731076232797,-500.0,0.00021916,2]
[341665700,1731076232806,-500.0,0.00021916,2]
[341665701,1731076232815,-500.0,0.00021916,2]
[341665702,1731076232824,-500.0,0.00021916,2]
[341665703,1731076232834,-500.0,0.00021916,2]
[341665706,1731076232844,-500.0,0.00021916,2]
[341665708,1731076232853,-500.0,0.00021916,2]
[341665710,1731076232863,-511.13635041,0.00021916,2]
[341665712,1731076232872,-500.0,0.00021916,2]
[341665714,1731076232882,-500.0,0.00021916,2]
[341665716,1731076232893,-500.0,0.00021916,2]
[341665718,1731076232903,-500.0,0.00021916,2]
[341665720,1731076232911,-500.0,0.00021916,2]
[341665722,1731076232920,-500.0,0.00021916,2]
[341665724,1731076232931,-500.0,0.00021916,2]
[341665726,1731076232941,-500.0,0.00021916,2]
[341665728,1731076232950,-500.0,0.00021916,2]
[341665730,1731076232960,-500.0,0.00021916,2]
[341665732,1731076232970,-500.0,0.00021916,2]
[341665734,1731076232980,-500.0,0.00021916,2]
[341665736,1731076232991,-500.0,0.00021916,2]
[341665738,1731076233000,-500.0,0.00021916,2]
[341665740,1731076233009,-500.0,0.00021916,2]
[341665742,1731076233019,-500.0,0.00021916,2]
[341665744,1731076233028,-500.0,0.00021916,2]
[341665746,1731076233039,-500.0,0.00021916,2]
[341665748,1731076233048,-500.0,0.00021916,2]
[341665750,1731076233058,-500.0,0.00021916,2]
[341665752,1731076233069,-500.0,0.00021916,2]
[341665754,1731076233079,-500.0,0.00021916,2]
[341665756,1731076233089,-500.0,0.00021916,2]
[341665758,1731076233098,-578.09743182,0.00021916,2]
[341665760,1731076233108,-500.0,0.00021916,2]
[341665762,1731076233118,-219.42668719,0.00021916,2]
[341665764,1731076233127,-500.0,0.00021916,2]
[341665765,1731076233139,-500.0,0.00021916,2]
[341665767,1731076233149,-500.0,0.00021916,2]
[341665769,1731076233160,-500.0,0.00021916,2]
[341665771,1731076233170,-607.27358393,0.00021916,2]
[341665773,1731076233180,-500.0,0.00021916,2]
[341665775,1731076233191,-500.0,0.00021916,2]
[341665777,1731076233201,-500.0,0.00021916,2]
[341665779,1731076233211,-302.87688637,0.00021916,2]
[341665781,1731076233221,-500.0,0.00021916,2]
[341665783,1731076233235,-500.0,0.00021916,2]
[341665784,1731076233245,-500.0,0.00021916,2]
[341665785,1731076233254,-500.0,0.00021916,2]
[341665786,1731076233264,-500.0,0.00021916,2]
[341665787,1731076233275,-500.0,0.00021916,2]
[341665788,1731076233284,-500.0,0.00021916,2]
[341665789,1731076233297,-500.0,0.00021916,2]
[341665790,1731076233308,-500.0,0.00021916,2]
[341665791,1731076233318,-232.98485687,0.00021916,2]
[341665793,1731076233327,-500.0,0.00021916,2]
[341665794,1731076233336,-500.0,0.00021916,2]
[341665795,1731076233345,-500.0,0.00021916,2]
[341665796,1731076233355,-500.0,0.00021916,2]
[341665797,1731076233364,-500.0,0.00021916,2]
[341665798,1731076233374,-500.0,0.00021916,2]
[341665799,1731076233384,-500.0,0.00021916,2]
[341665800,1731076233394,-500.0,0.00021916,2]
[341665801,1731076233405,-501.19114891,0.00021916,2]
[341665802,1731076233414,-500.0,0.00021916,2]
[341665803,1731076233425,-161.68237531,0.00021916,2]
[341665804,1731076233435,-176.1730872,0.00021916,2]
[341665805,1731076233445,-200.96158222,0.00021916,2]
[341665806,1731076233455,-500.0,0.00021916,2]
[341665807,1731076233467,-355.42027352,0.00021916,2]
[341665808,1731076233477,-583.53608055,0.00021916,2]
[341665809,1731076233486,-500.0,0.00021917,2]
[341665810,1731076233497,-500.0,0.00021917,2]
[341665811,1731076233507,-500.0,0.00021917,2]
[341665812,1731076233516,-500.0,0.00021917,2]
[341665813,1731076233525,-500.0,0.00021917,2]
[341665814,1731076233534,-508.87598685,0.00021917,2]
[341665815,1731076233544,-511.85116559,0.00021917,2]
[341665816,1731076233553,-520.01044981,0.00021917,2]
[341665817,1731076233563,-505.57370327,0.00021917,2]
[341665818,1731076233573,-501.45591317,0.00021917,2]
[341665819,1731076233582,-539.23094554,0.00021917,2]
[341665820,1731076233591,-587.10903577,0.00021917,2]
[341665821,1731076233600,-500.0,0.00021917,2]
[341665822,1731076233609,-500.0,0.00021917,2]
[341665823,1731076233619,-500.0,0.00021917,2]
[341665824,1731076233630,-500.0,0.00021917,2]
[341665825,1731076233641,-500.0,0.00021917,2]
[341665826,1731076233650,-500.0,0.00021917,2]
[341665827,1731076233660,-772.5,0.00021917,2]
[341665828,1731076233669,-500.0,0.00021917,2]
[341665829,1731076233679,-500.0,0.00021917,2]
[341665830,1731076233688,-500.0,0.00021917,2]
[341665831,1731076233698,-500.0,0.00021917,2]
[341665832,1731076233709,-500.0,0.00021917,2]
[341665833,1731076233718,-500.0,0.00021917,2]
[341665834,1731076233728,-500.0,0.00021917,2]
[341665835,1731076233737,-251.34457677,0.00021917,2]
[341665836,1731076233747,-500.0,0.00021917,2]
[341665837,1731076233756,-500.0,0.00021917,2]
[341665838,1731076233767,-500.0,0.00021917,2]
[341665839,1731076233776,-344.15260463,0.00021917,2]
[341665840,1731076233786,-500.0,0.00021917,2]
[341665841,1731076233796,-419.52770081,0.00021917,2]
[341665842,1731076233805,-500.0,0.00021917,2]
[341665843,1731076233815,-500.0,0.00021917,2]
[341665844,1731076233825,-503.36798588,0.00021917,2]
[341665845,1731076233835,-280.82824512,0.00021917,2]
[341665846,1731076233845,-500.0,0.00021917,2]
[341665847,1731076233854,-500.0,0.00021917,2]
[341665848,1731076233864,-569.23946109,0.00021917,2]
[341665849,1731076233874,-49.66598222,0.00021917,2]
[341665858,1731076238786,-450.33401778,0.00021917,2]
[341665859,1731076238796,-544.55855869,0.00021917,2]
[341665860,1731076238805,-500.0,0.00021917,2]
[341665861,1731076238814,-500.0,0.00021917,2]
[341665863,1731076238823,-500.0,0.00021917,2]